{"text_format":"3","workbook":"xlsx","n_sheets":3,"sheets":["Данные для прогноза","Прогноз продаж","Списки"],"not_rendered":{"charts":1,"images":4,"defined_names":7},"read":"whole","date_system":"1900"}

{"sheet":"Данные для прогноза","index":0,"n_rows":29,"n_cols":11,"rows_kept":29}
[{"$nulls":10}," "]
[null,"HLP Manufacturing INC"]
[null,"Прогноз продаж"]
[null,"Конфиденциально"]
[]
[null,"Имя возможного клиента","Продажи агент","Продажи регион","Продажи Категория","Прогнозируемая сумма","Продажи этап","Вероятность продажи","Прогноз закрытие","Взвешенный прогноз"]
[null,"Adatum Corporation","Роуэн Мерфи","Северо-восток США","Консультирование",{"v":150000,"d":"150,000 ₽"},"Формальное утверждение",{"v":0.9,"d":"90%"},{"$f":"DATE(YEAR(TODAY())+1,1,1)","v":"2025-01-01"},{"$f":"Таблица_ДанныеДляПрогноза[[#This Row],[Прогнозируемая сумма]]*Таблица_ДанныеДляПрогноза[[#This Row],[Вероятность продажи]]","v":{"v":135000,"d":"135,000 ₽"}}]
[null,"Adventure Works","Михо Кодзима","Юго-восток США","Продукты",{"v":145200,"d":"145,200 ₽"},"Возможность",{"v":0.1,"d":"10%"},{"$f":"DATE(YEAR(TODAY())+1,2,1)","v":"2025-02-01"},{"$f":"Таблица_ДанныеДляПрогноза[[#This Row],[Прогнозируемая сумма]]*Таблица_ДанныеДляПрогноза[[#This Row],[Вероятность продажи]]","v":{"v":14520,"d":"14,520 ₽"}}]
[null,"Alpine Ski House","Кора Томас","Центр США на севере","Обучение",{"v":162500,"d":"162,500 ₽"},"Выявлена потребность",{"v":0.2,"d":"20%"},{"$f":"DATE(YEAR(TODAY())+1,3,1)","v":"2025-03-01"},{"$f":"Таблица_ДанныеДляПрогноза[[#This Row],[Прогнозируемая сумма]]*Таблица_ДанныеДляПрогноза[[#This Row],[Вероятность продажи]]","v":{"v":32500,"d":"32,500 ₽"}}]
[null,"Baldwin Museum of Science","Эллис Тернер","Центр США на юге","Сочетание",{"v":147500,"d":"147,500 ₽"},"Спонсорство",{"v":0.3,"d":"30%"},{"$f":"DATE(YEAR(TODAY())+1,4,1)","v":"2025-04-01"},{"$f":"Таблица_ДанныеДляПрогноза[[#This Row],[Прогнозируемая сумма]]*Таблица_ДанныеДляПрогноза[[#This Row],[Вероятность продажи]]","v":{"v":44250,"d":"44,250 ₽"}}]
[null,"Blue Yonder Airlines","Сума Кини","Северо-запад США","Проф. услуги",{"v":148000,"d":"148,000 ₽"},"Бюджет подтвержден",{"v":0.4,"d":"40%"},{"$f":"DATE(YEAR(TODAY())+1,5,1)","v":"2025-05-01"},{"$f":"Таблица_ДанныеДляПрогноза[[#This Row],[Прогнозируемая сумма]]*Таблица_ДанныеДляПрогноза[[#This Row],[Вероятность продажи]]","v":{"v":59200,"d":"59,200 ₽"}}]
[null,"City Power & Light","Роуэн Мерфи","Юго-запад США","Поддержка",{"v":175000,"d":"175,000 ₽"},"Анализ потребностей",{"v":0.5,"d":"50%"},{"$f":"DATE(YEAR(TODAY())+1,6,1)","v":"2025-06-01"},{"$f":"Таблица_ДанныеДляПрогноза[[#This Row],[Прогнозируемая сумма]]*Таблица_ДанныеДляПрогноза[[#This Row],[Вероятность продажи]]","v":{"v":87500,"d":"87,500 ₽"}}]
[null,"Coho Vineyard","Кора Томас","Восток Канады","Сочетание",{"v":149000,"d":"149,000 ₽"},"Предложено решение",{"v":0.6,"d":"60%"},{"$f":"DATE(YEAR(TODAY())+1,7,1)","v":"2025-07-01"},{"$f":"Таблица_ДанныеДляПрогноза[[#This Row],[Прогнозируемая сумма]]*Таблица_ДанныеДляПрогноза[[#This Row],[Вероятность продажи]]","v":{"v":89400,"d":"89,400 ₽"}}]
[null,"Coho Winery","Сума Кини","Запад Канады","Обучение",{"v":142000,"d":"142,000 ₽"},"Письменное предложение",{"v":0.7,"d":"70%"},{"$f":"DATE(YEAR(TODAY())+1,8,1)","v":"2025-08-01"},{"$f":"Таблица_ДанныеДляПрогноза[[#This Row],[Прогнозируемая сумма]]*Таблица_ДанныеДляПрогноза[[#This Row],[Вероятность продажи]]","v":{"v":99400,"d":"99,400 ₽"}}]
[null,"Contoso, Ltd.","Кора Томас","ЕБВА — Франция","Сочетание",{"v":172500,"d":"172,500 ₽"},"Устное утверждение",{"v":0.9,"d":"90%"},{"$f":"DATE(YEAR(TODAY())+1,10,1)","v":"2025-10-01"},{"$f":"Таблица_ДанныеДляПрогноза[[#This Row],[Прогнозируемая сумма]]*Таблица_ДанныеДляПрогноза[[#This Row],[Вероятность продажи]]","v":{"v":155250,"d":"155,250 ₽"}}]
[null,"Contoso Pharmaceuticals","Эллис Тернер","ЕБВА — Германия","Продукты",{"v":163500,"d":"163,500 ₽"},"Спонсорство",{"v":0.2,"d":"20%"},{"$f":"DATE(YEAR(TODAY())+1,11,1)","v":"2025-11-01"},{"$f":"Таблица_ДанныеДляПрогноза[[#This Row],[Прогнозируемая сумма]]*Таблица_ДанныеДляПрогноза[[#This Row],[Вероятность продажи]]","v":{"v":32700,"d":"32,700 ₽"}}]
[null,"Consolidated Messenger","Сума Кини","ЕБВА — Италия","Продукты",{"v":155500,"d":"155,500 ₽"},"Формальное утверждение",{"v":1,"d":"100%"},{"$f":"DATE(YEAR(TODAY())+1,12,1)","v":"2025-12-01"},{"$f":"Таблица_ДанныеДляПрогноза[[#This Row],[Прогнозируемая сумма]]*Таблица_ДанныеДляПрогноза[[#This Row],[Вероятность продажи]]","v":{"v":155500,"d":"155,500 ₽"}}]
[null,"Fabrikam, Inc.","Эллис Тернер","ЕБВА — другие","Консультирование",{"v":166000,"d":"166,000 ₽"},"Возможность",{"v":0.1,"d":"10%"},{"$f":"DATE(YEAR(TODAY())+1,1,1)","v":"2025-01-01"},{"$f":"Таблица_ДанныеДляПрогноза[[#This Row],[Прогнозируемая сумма]]*Таблица_ДанныеДляПрогноза[[#This Row],[Вероятность продажи]]","v":{"v":16600,"d":"16,600 ₽"}}]
[null,"Fourth Coffee","Кора Томас","APSA — Азия","Обучение",{"v":180000,"d":"180,000 ₽"},"Бюджет подтвержден",{"v":0.3,"d":"30%"},{"$f":"DATE(YEAR(TODAY())+1,3,1)","v":"2025-03-01"},{"$f":"Таблица_ДанныеДляПрогноза[[#This Row],[Прогнозируемая сумма]]*Таблица_ДанныеДляПрогноза[[#This Row],[Вероятность продажи]]","v":{"v":54000,"d":"54,000 ₽"}}]
[null,"Институт графического дизайна","Михо Кодзима","APSA — Тихоокеанский регион","Услуги",{"v":140000,"d":"140,000 ₽"},"Предложено решение",{"v":0.6,"d":"60%"},{"$f":"DATE(YEAR(TODAY())+1,5,1)","v":"2025-05-01"},{"$f":"Таблица_ДанныеДляПрогноза[[#This Row],[Прогнозируемая сумма]]*Таблица_ДанныеДляПрогноза[[#This Row],[Вероятность продажи]]","v":{"v":84000,"d":"84,000 ₽"}}]
[null,"Humongous Insurance","Роуэн Мерфи","APSA — Мексика","Поддержка",{"v":155000,"d":"155,000 ₽"},"Спонсорство",{"v":0.3,"d":"30%"},{"$f":"DATE(YEAR(TODAY())+1,6,1)","v":"2025-06-01"},{"$f":"Таблица_ДанныеДляПрогноза[[#This Row],[Прогнозируемая сумма]]*Таблица_ДанныеДляПрогноза[[#This Row],[Вероятность продажи]]","v":{"v":46500,"d":"46,500 ₽"}}]
[null,"Litware, Inc.","Михо Кодзима","APSA — Австралия","Проф. услуги",{"v":173200,"d":"173,200 ₽"},"Анализ потребностей",{"v":0.5,"d":"50%"},{"$f":"DATE(YEAR(TODAY())+1,10,1)","v":"2025-10-01"},{"$f":"Таблица_ДанныеДляПрогноза[[#This Row],[Прогнозируемая сумма]]*Таблица_ДанныеДляПрогноза[[#This Row],[Вероятность продажи]]","v":{"v":86600,"d":"86,600 ₽"}}]
[null,"Lucerne Publishing","Сума Кини","APSA — другие","Услуги",{"v":146500,"d":"146,500 ₽"},"Предложено решение",{"v":0.6,"d":"60%"},{"$f":"DATE(YEAR(TODAY())+1,12,1)","v":"2025-12-01"},{"$f":"Таблица_ДанныеДляПрогноза[[#This Row],[Прогнозируемая сумма]]*Таблица_ДанныеДляПрогноза[[#This Row],[Вероятность продажи]]","v":{"v":87900,"d":"87,900 ₽"}}]
[null,"Margie's Travel","Эллис Тернер","Северо-восток США","Поддержка",{"v":156750,"d":"156,750 ₽"},"Письменное предложение",{"v":0.7,"d":"70%"},{"$f":"DATE(YEAR(TODAY())+1,11,1)","v":"2025-11-01"},{"$f":"Таблица_ДанныеДляПрогноза[[#This Row],[Прогнозируемая сумма]]*Таблица_ДанныеДляПрогноза[[#This Row],[Вероятность продажи]]","v":{"v":109725,"d":"109,725 ₽"}}]
[null,"Northwind Traders","Кора Томас","Центр США на юге","Проф. услуги",{"v":162000,"d":"162,000 ₽"},"Устное утверждение",{"v":0.9,"d":"90%"},{"$f":"DATE(YEAR(TODAY())+1,2,1)","v":"2025-02-01"},{"$f":"Таблица_ДанныеДляПрогноза[[#This Row],[Прогнозируемая сумма]]*Таблица_ДанныеДляПрогноза[[#This Row],[Вероятность продажи]]","v":{"v":145800,"d":"145,800 ₽"}}]
[null,"Proseware, Inc.","Эллис Тернер","Восток Канады","Сочетание",{"v":157000,"d":"157,000 ₽"},"Формальное утверждение",{"v":1,"d":"100%"},{"$f":"DATE(YEAR(TODAY())+1,3,1)","v":"2025-03-01"},{"$f":"Таблица_ДанныеДляПрогноза[[#This Row],[Прогнозируемая сумма]]*Таблица_ДанныеДляПрогноза[[#This Row],[Вероятность продажи]]","v":{"v":157000,"d":"157,000 ₽"}}]
[null,"Художественная школа","Михо Кодзима","ЕБВА — Франция","Услуги",{"v":173000,"d":"173,000 ₽"},"Бюджет подтвержден",{"v":0.4,"d":"40%"},{"$f":"DATE(YEAR(TODAY())+1,4,1)","v":"2025-04-01"},{"$f":"Таблица_ДанныеДляПрогноза[[#This Row],[Прогнозируемая сумма]]*Таблица_ДанныеДляПрогноза[[#This Row],[Вероятность продажи]]","v":{"v":69200,"d":"69,200 ₽"}}]
[null,"Southridge Video","Сума Кини","ЕБВА — Соединенное Королевство","Сочетание",{"v":171000,"d":"171,000 ₽"},"Анализ потребностей",{"v":0.5,"d":"50%"},{"$f":"DATE(YEAR(TODAY())+1,8,1)","v":"2025-08-01"},{"$f":"Таблица_ДанныеДляПрогноза[[#This Row],[Прогнозируемая сумма]]*Таблица_ДанныеДляПрогноза[[#This Row],[Вероятность продажи]]","v":{"v":85500,"d":"85,500 ₽"}}]
[null,"Tailspin Toys","Роуэн Мерфи","APSA — Австралия","Продукты",{"v":168000,"d":"168,000 ₽"},"Предложено решение",{"v":0.6,"d":"60%"},{"$f":"DATE(YEAR(TODAY())+1,9,1)","v":"2025-09-01"},{"$f":"Таблица_ДанныеДляПрогноза[[#This Row],[Прогнозируемая сумма]]*Таблица_ДанныеДляПрогноза[[#This Row],[Вероятность продажи]]","v":{"v":100800,"d":"100,800 ₽"}}]

{"sheet":"Прогноз продаж","index":1,"n_rows":19,"n_cols":18,"rows_kept":19}
[{"$nulls":14}," "]
[null,{"$f":"НазваниеКомпании","v":"HLP Manufacturing INC"}]
[null,"Диаграмма прогноза"]
[null,"Конфиденциально"]
[null,"Начальный месяц",{"$f":"DATE(YEAR(TODAY())+1,1,1)","v":"2025-01-01"}]
[null,"Месяц","Ежемесячный прогноз","Накопленное значение",{"$nulls":11},{"$f":"B6","v":"Месяц"},"Месячный прогноз","Накопленное значение"]
[null,{"$f":"DATE(YEAR(Месяц_начала),MONTH(Месяц_начала)+0,1)","v":"2025-01-01"},{"$f":"SUMIFS(Таблица_ДанныеДляПрогноза[Взвешенный прогноз],Таблица_ДанныеДляПрогноза[Прогноз закрытие],\">=\"&'Прогноз продаж'!B7,Таблица_ДанныеДляПрогноза[Прогноз закрытие],\"<=\"&DATE(YEAR('Прогноз продаж'!B7),MONTH('Прогноз продаж'!B7)+1,0))","v":{"v":151600,"d":"151,600 ₽"}},{"$f":"IF(ISNUMBER(D6),D6+C7,C7)","v":{"v":151600,"d":"151,600 ₽"}},{"$nulls":11},{"$f":"B7","v":"2025-01-01"},{"$f":"C7","v":{"v":151600,"d":"151,600 ₽"}},{"$f":"D7-C7","v":0}]
[null,{"$f":"DATE(YEAR(Месяц_начала),MONTH(Месяц_начала)+1,1)","v":"2025-02-01"},{"$f":"SUMIFS(Таблица_ДанныеДляПрогноза[Взвешенный прогноз],Таблица_ДанныеДляПрогноза[Прогноз закрытие],\">=\"&'Прогноз продаж'!B8,Таблица_ДанныеДляПрогноза[Прогноз закрытие],\"<=\"&DATE(YEAR('Прогноз продаж'!B8),MONTH('Прогноз продаж'!B8)+1,0))","v":{"v":160320,"d":"160,320 ₽"}},{"v":311920,"d":"311,920 ₽"},{"$nulls":11},"2025-02-01",{"$f":"C8","v":{"v":160320,"d":"160,320 ₽"}},{"$f":"D8-C8","v":{"v":151600,"d":"151,600 ₽"}}]
[null,{"$f":"DATE(YEAR(Месяц_начала),MONTH(Месяц_начала)+2,1)","v":"2025-03-01"},{"$f":"SUMIFS(Таблица_ДанныеДляПрогноза[Взвешенный прогноз],Таблица_ДанныеДляПрогноза[Прогноз закрытие],\">=\"&'Прогноз продаж'!B9,Таблица_ДанныеДляПрогноза[Прогноз закрытие],\"<=\"&DATE(YEAR('Прогноз продаж'!B9),MONTH('Прогноз продаж'!B9)+1,0))","v":{"v":243500,"d":"243,500 ₽"}},{"v":555420,"d":"555,420 ₽"},{"$nulls":11},"2025-03-01",{"v":243500,"d":"243,500 ₽"},{"v":311920,"d":"311,920 ₽"}]
[null,{"$f":"DATE(YEAR(Месяц_начала),MONTH(Месяц_начала)+3,1)","v":"2025-04-01"},{"$f":"SUMIFS(Таблица_ДанныеДляПрогноза[Взвешенный прогноз],Таблица_ДанныеДляПрогноза[Прогноз закрытие],\">=\"&'Прогноз продаж'!B10,Таблица_ДанныеДляПрогноза[Прогноз закрытие],\"<=\"&DATE(YEAR('Прогноз продаж'!B10),MONTH('Прогноз продаж'!B10)+1,0))","v":{"v":113450,"d":"113,450 ₽"}},{"v":668870,"d":"668,870 ₽"},{"$nulls":11},"2025-04-01",{"v":113450,"d":"113,450 ₽"},{"v":555420,"d":"555,420 ₽"}]
[null,{"$f":"DATE(YEAR(Месяц_начала),MONTH(Месяц_начала)+4,1)","v":"2025-05-01"},{"$f":"SUMIFS(Таблица_ДанныеДляПрогноза[Взвешенный прогноз],Таблица_ДанныеДляПрогноза[Прогноз закрытие],\">=\"&'Прогноз продаж'!B11,Таблица_ДанныеДляПрогноза[Прогноз закрытие],\"<=\"&DATE(YEAR('Прогноз продаж'!B11),MONTH('Прогноз продаж'!B11)+1,0))","v":{"v":143200,"d":"143,200 ₽"}},{"v":812070,"d":"812,070 ₽"},{"$nulls":11},"2025-05-01",{"v":143200,"d":"143,200 ₽"},{"v":668870,"d":"668,870 ₽"}]
[null,{"$f":"DATE(YEAR(Месяц_начала),MONTH(Месяц_начала)+5,1)","v":"2025-06-01"},{"$f":"SUMIFS(Таблица_ДанныеДляПрогноза[Взвешенный прогноз],Таблица_ДанныеДляПрогноза[Прогноз закрытие],\">=\"&'Прогноз продаж'!B12,Таблица_ДанныеДляПрогноза[Прогноз закрытие],\"<=\"&DATE(YEAR('Прогноз продаж'!B12),MONTH('Прогноз продаж'!B12)+1,0))","v":{"v":134000,"d":"134,000 ₽"}},{"v":946070,"d":"946,070 ₽"},{"$nulls":11},"2025-06-01",{"v":134000,"d":"134,000 ₽"},{"v":812070,"d":"812,070 ₽"}]
[null,{"$f":"DATE(YEAR(Месяц_начала),MONTH(Месяц_начала)+6,1)","v":"2025-07-01"},{"$f":"SUMIFS(Таблица_ДанныеДляПрогноза[Взвешенный прогноз],Таблица_ДанныеДляПрогноза[Прогноз закрытие],\">=\"&'Прогноз продаж'!B13,Таблица_ДанныеДляПрогноза[Прогноз закрытие],\"<=\"&DATE(YEAR('Прогноз продаж'!B13),MONTH('Прогноз продаж'!B13)+1,0))","v":{"v":89400,"d":"89,400 ₽"}},{"v":1035470,"d":"1,035,470 ₽"},{"$nulls":11},"2025-07-01",{"v":89400,"d":"89,400 ₽"},{"v":946070,"d":"946,070 ₽"}]
[null,{"$f":"DATE(YEAR(Месяц_начала),MONTH(Месяц_начала)+7,1)","v":"2025-08-01"},{"$f":"SUMIFS(Таблица_ДанныеДляПрогноза[Взвешенный прогноз],Таблица_ДанныеДляПрогноза[Прогноз закрытие],\">=\"&'Прогноз продаж'!B14,Таблица_ДанныеДляПрогноза[Прогноз закрытие],\"<=\"&DATE(YEAR('Прогноз продаж'!B14),MONTH('Прогноз продаж'!B14)+1,0))","v":{"v":184900,"d":"184,900 ₽"}},{"v":1220370,"d":"1,220,370 ₽"},{"$nulls":11},"2025-08-01",{"v":184900,"d":"184,900 ₽"},{"v":1035470,"d":"1,035,470 ₽"}]
[null,{"$f":"DATE(YEAR(Месяц_начала),MONTH(Месяц_начала)+8,1)","v":"2025-09-01"},{"$f":"SUMIFS(Таблица_ДанныеДляПрогноза[Взвешенный прогноз],Таблица_ДанныеДляПрогноза[Прогноз закрытие],\">=\"&'Прогноз продаж'!B15,Таблица_ДанныеДляПрогноза[Прогноз закрытие],\"<=\"&DATE(YEAR('Прогноз продаж'!B15),MONTH('Прогноз продаж'!B15)+1,0))","v":{"v":100800,"d":"100,800 ₽"}},{"v":1321170,"d":"1,321,170 ₽"},{"$nulls":11},"2025-09-01",{"v":100800,"d":"100,800 ₽"},{"v":1220370,"d":"1,220,370 ₽"}]
[null,{"$f":"DATE(YEAR(Месяц_начала),MONTH(Месяц_начала)+9,1)","v":"2025-10-01"},{"$f":"SUMIFS(Таблица_ДанныеДляПрогноза[Взвешенный прогноз],Таблица_ДанныеДляПрогноза[Прогноз закрытие],\">=\"&'Прогноз продаж'!B16,Таблица_ДанныеДляПрогноза[Прогноз закрытие],\"<=\"&DATE(YEAR('Прогноз продаж'!B16),MONTH('Прогноз продаж'!B16)+1,0))","v":{"v":241850,"d":"241,850 ₽"}},{"v":1563020,"d":"1,563,020 ₽"},{"$nulls":11},"2025-10-01",{"v":241850,"d":"241,850 ₽"},{"v":1321170,"d":"1,321,170 ₽"}]
[null,{"$f":"DATE(YEAR(Месяц_начала),MONTH(Месяц_начала)+10,1)","v":"2025-11-01"},{"$f":"SUMIFS(Таблица_ДанныеДляПрогноза[Взвешенный прогноз],Таблица_ДанныеДляПрогноза[Прогноз закрытие],\">=\"&'Прогноз продаж'!B17,Таблица_ДанныеДляПрогноза[Прогноз закрытие],\"<=\"&DATE(YEAR('Прогноз продаж'!B17),MONTH('Прогноз продаж'!B17)+1,0))","v":{"v":142425,"d":"142,425 ₽"}},{"v":1705445,"d":"1,705,445 ₽"},{"$nulls":11},"2025-11-01",{"v":142425,"d":"142,425 ₽"},{"v":1563020,"d":"1,563,020 ₽"}]
[null,{"$f":"DATE(YEAR(Месяц_начала),MONTH(Месяц_начала)+11,1)","v":"2025-12-01"},{"$f":"SUMIFS(Таблица_ДанныеДляПрогноза[Взвешенный прогноз],Таблица_ДанныеДляПрогноза[Прогноз закрытие],\">=\"&'Прогноз продаж'!B18,Таблица_ДанныеДляПрогноза[Прогноз закрытие],\"<=\"&DATE(YEAR('Прогноз продаж'!B18),MONTH('Прогноз продаж'!B18)+1,0))","v":{"v":243400,"d":"243,400 ₽"}},{"v":1948845,"d":"1,948,845 ₽"},{"$nulls":11},"2025-12-01",{"v":243400,"d":"243,400 ₽"},{"v":1705445,"d":"1,705,445 ₽"}]
[{"$nulls":14}," "]

{"sheet":"Списки","index":2,"n_rows":24,"n_cols":5,"rows_kept":24}
[]
[null,{"$f":"НазваниеКомпании","v":"HLP Manufacturing INC"}]
[null,"Списки продаж"]
[null,"Конфиденциально"]
[]
[null,"Агенты продаж","Регионы продаж","Категории продаж","Этапы продаж"]
[null,"Роуэн Мерфи","Северо-восток США","Консультирование","Выявлена потребность"]
[null,"Михо Кодзима","Юго-восток США","Сочетание","Возможность"]
[null,"Кора Томас","Центр США на севере","Продукты","Анализ потребностей"]
[null,"Эллис Тернер","Центр США на юге","Проф. услуги","Предложено решение"]
[null,"Сума Кини","Северо-запад США","Услуги","Письменное предложение"]
[null,null,"Юго-запад США","Поддержка","Устное утверждение"]
[null,null,"Восток Канады","Обучение","Формальное утверждение"]
[null,null,"Запад Канады",null,"Бюджет подтвержден"]
[null,null,"ЕБВА — Франция",null,"Спонсорство"]
[null,null,"ЕБВА — Германия"]
[null,null,"ЕБВА — Италия"]
[null,null,"ЕБВА — другие"]
[null,null,"APSA — Азия"]
[null,null,"APSA — Тихоокеанский регион"]
[null,null,"APSA — Мексика"]
[null,null,"APSA — Австралия"]
[null,null,"APSA — другие"]
[null,null,"ЕБВА — Соединенное Королевство"]